fUSD/lending_fUSD_20240322
["ID","MTS","AMOUNT","RATE_DAILY","PERIOD"]
[320068026,1711132246558,-500.0,0.00021917,2]
[320068027,1711132246567,-1838.38,0.00021917,2]
[320068028,1711132246578,-500.0,0.00021917,2]
[320068029,1711132246587,-886.04,0.00021917,2]
[320068030,1711132246597,-500.0,0.00021917,2]
[320068031,1711132246606,-502.52453126,0.00021917,2]
[320068032,1711132246614,-504.41136945,0.00021917,2]
[320068033,1711132246624,-500.0,0.00021917,2]
[320068034,1711132246633,-1178.06,0.00021917,2]
[320068035,1711132246641,-500.0,0.00021917,2]
[320068036,1711132246650,-500.0,0.00021917,2]
[320068037,1711132246659,-500.0,0.00021917,2]
[320068038,1711132246668,-500.0,0.00021917,2]
[320068039,1711132246678,-505.03347211,0.00021917,2]
[320068040,1711132246687,-839.48,0.00021917,2]
[320068041,1711132246700,-500.0,0.00021917,2]
[320068042,1711132246717,-500.0,0.00021917,2]
[320068043,1711132246734,-500.0,0.00021917,2]
[320068044,1711132246749,-500.0,0.00021917,2]
[320068045,1711132246766,-500.0,0.00021917,2]
[320068046,1711132246782,-500.0,0.00021917,2]
[320068047,1711132246798,-500.0,0.00021917,2]
[320068048,1711132246815,-500.0,0.00021917,2]
[320068049,1711132246834,-500.0,0.00021917,2]
[320068050,1711132246851,-500.0,0.00021917,2]
[320068051,1711132246863,-500.0,0.00021917,2]
[320068052,1711132246873,-500.0,0.00021917,2]
[320068053,1711132246883,-502.69755206,0.00021917,2]
[320068054,1711132246893,-779.39,0.00021917,2]
[320068055,1711132246903,-500.0,0.00021917,2]
[320068056,1711132246913,-500.0,0.00021917,2]
[320068057,1711132246922,-500.0,0.00021917,2]
[320068058,1711132246931,-642.36,0.00021917,2]
[320068059,1711132246941,-500.0,0.00021917,2]
[320068060,1711132246950,-500.0,0.00021917,2]
[320068061,1711132246960,-1093.08,0.00021917,2]
[320068062,1711132246969,-500.0,0.00021917,2]
[320068063,1711132246978,-500.0,0.00021917,2]
[320068064,1711132246987,-502.25489832,0.00021917,2]
[320068065,1711132246997,-500.0,0.00021917,2]
[320068066,1711132247006,-502.94281353,0.00021917,2]
[320068067,1711132247015,-504.40032902,0.00021917,2]
[320068068,1711132247025,-500.0,0.00021917,2]
[320068069,1711132247034,-500.60124774,0.00021917,2]
[320068070,1711132247043,-500.0,0.00021917,2]
[320068071,1711132247053,-500.0,0.00021917,2]
[320068072,1711132247062,-655.13,0.00021917,2]
[320068073,1711132247073,-500.0,0.00021917,2]
[320068074,1711132247082,-500.0,0.00021917,2]
[320068075,1711132247092,-500.0,0.00021917,2]
[320068076,1711132247101,-500.43833569,0.00021917,2]
[320068077,1711132247110,-501.62811271,0.00021917,2]
[320068078,1711132247120,-500.0,0.00021917,2]
[320068079,1711132247129,-500.0,0.00021917,2]
[320068080,1711132247139,-503.22575176,0.00021917,2]
[320068081,1711132247148,-500.0,0.00021917,2]
[320068082,1711132247157,-500.0,0.00021917,2]
[320068083,1711132247167,-428.721797,0.00021917,2]
[320068084,1711132247176,-500.0,0.00021917,2]
[320068085,1711132247186,-503.2140535,0.00021917,2]
[320068086,1711132247195,-591.88704892,0.00021917,2]
[320068087,1711132247205,-605.85,0.00021917,2]
[320068088,1711132247215,-507.24547672,0.00021917,2]
[320068089,1711132247225,-500.0,0.00021917,2]
[320068090,1711132247234,-500.0,0.00021917,2]
[320068091,1711132247245,-500.0,0.00021917,2]
[320068092,1711132247254,-500.0,0.00021917,2]
[320068093,1711132247264,-516.85,0.00021917,2]
[320068094,1711132247273,-500.0,0.00021917,2]
[320068095,1711132247282,-500.0,0.00021917,2]
[320068096,1711132247292,-500.0,0.00021917,2]
[320068097,1711132247301,-500.0,0.00021917,2]
[320068098,1711132247311,-151.02052852,0.00021917,2]
[320068099,1711132247322,-530.4791918,0.00021917,2]
[320068100,1711132247331,-500.0,0.00021917,2]
[320068101,1711132247340,-500.0,0.00021917,2]
[320068102,1711132247349,-500.0,0.00021917,2]
[320068103,1711132247359,-500.0,0.00021917,2]
[320068104,1711132247368,-500.0,0.00021917,2]
[320068105,1711132247377,-500.0,0.00021917,2]
[320068106,1711132247387,-506.39835267,0.00021917,2]
[320068107,1711132247396,-500.0,0.00021917,2]
[320068108,1711132247406,-504.41555737,0.00021917,2]
[320068109,1711132247416,-602.08,0.00021917,2]
[320068110,1711132247425,-500.0,0.00021917,2]
[320068111,1711132247435,-500.0,0.00021917,2]
[320068112,1711132247445,-513.45,0.00021917,2]
[320068113,1711132247454,-545.74,0.00021917,2]
[320068114,1711132247463,-500.0,0.00021917,2]
[320068115,1711132247473,-957.62,0.00021917,2]
[320068116,1711132247482,-501.5783574,0.00021917,2]
[320068117,1711132247491,-500.0,0.00021917,2]
[320068118,1711132247501,-500.0,0.00021917,2]
[320068119,1711132247511,-500.0,0.00021917,2]
[320068120,1711132247521,-500.0,0.00021917,2]
[320068121,1711132247530,-188.76520528,0.00021917,10]
[320068122,1711132247540,-648.62,0.00021917,2]
[320068123,1711132247550,-500.0,0.00021917,2]
[320068124,1711132247559,-509.94794696,0.00021917,2]
[320068126,1711132247569,-500.0,0.00021917,2]
[320068127,1711132247658,-500.0,0.00021917,2]
[320068128,1711132247667,-500.0,0.00021917,2]
[320068129,1711132247676,-765.59,0.00021917,2]
[320068130,1711132247685,-500.0,0.00021917,2]
[320068131,1711132247694,-500.0,0.00021917,2]
[320068132,1711132247702,-500.0,0.00021917,2]
[320068133,1711132247711,-500.0,0.00021917,2]
[320068134,1711132247723,-500.0,0.00021917,2]
[320068135,1711132247732,-500.0,0.00021917,2]
[320068136,1711132247742,-500.0,0.00021917,2]
[320068137,1711132247751,-500.0,0.00021917,2]
[320068138,1711132247761,-811.95,0.00021917,2]
[320068139,1711132247769,-500.0,0.00021917,2]
[320068140,1711132247779,-500.95496518,0.00021917,2]
[320068141,1711132247788,-500.0,0.00021917,2]
[320068142,1711132247798,-3822.87,0.00021917,2]
[320068143,1711132247807,-500.0,0.00021917,2]
[320068144,1711132247817,-636.7326157,0.00021917,2]
[320068145,1711132247827,-500.0,0.00021917,2]
[320068146,1711132247837,-500.0,0.00021917,2]
[320068147,1711132247846,-500.0,0.00021917,2]
[320068148,1711132247855,-500.0,0.00021917,2]
[320068149,1711132247865,-890.15,0.00021917,2]
[320068150,1711132247874,-500.0,0.00021917,2]
[320068151,1711132247883,-550.15,0.00021917,2]
[320068152,1711132247892,-501.46914566,0.00021917,2]
[320068153,1711132247901,-1325.23,0.00021917,2]
[320068154,1711132247911,-500.0,0.00021917,2]
[320068155,1711132247921,-500.0,0.00021917,2]
[320068156,1711132247930,-500.0,0.00021917,2]
[320068157,1711132247939,-500.0,0.00021917,2]
[320068158,1711132247949,-500.0,0.00021917,2]
[320068159,1711132247958,-500.0,0.00021917,2]
[320068160,1711132247967,-500.0,0.00021917,2]
[320068161,1711132247976,-500.0,0.00021917,2]
[320068162,1711132247986,-500.0,0.00021917,2]
[320068163,1711132247995,-430.05463774,0.00021917,2]
[320068164,1711132248005,-1020.89,0.00021917,2]
[320068165,1711132248014,-500.0,0.00021917,2]
[320068166,1711132248023,-504.80187157,0.00021917,2]
[320068167,1711132248032,-500.0,0.00021917,2]
[320068168,1711132248041,-502.82232345,0.00021917,2]
[320068169,1711132248050,-500.0,0.00021917,2]
[320068170,1711132248059,-500.0,0.00021917,2]
[320068171,1711132248068,-500.0,0.00021917,2]
[320068172,1711132248079,-500.0,0.00021917,2]
[320068173,1711132248089,-500.0,0.00021917,2]
[320068174,1711132248098,-500.0,0.00021917,2]
[320068175,1711132248107,-500.0,0.00021917,2]
[320068176,1711132248116,-1216.95,0.00021917,2]
[320068177,1711132248126,-500.0,0.00021917,2]
[320068178,1711132248136,-500.0,0.00021917,2]
[320068179,1711132248145,-500.0,0.00021917,2]
[320068180,1711132248155,-500.0,0.00021917,2]
[320068181,1711132248164,-500.0,0.00021917,2]
[320068182,1711132248174,-150.0,0.00021917,2]
[320068183,1711132248183,-500.0,0.00021917,2]
[320068184,1711132248193,-500.0,0.00021917,2]
[320068185,1711132248204,-502.77454265,0.00021917,2]
[320068186,1711132248213,-501.10250342,0.00021917,2]
[320068187,1711132248222,-500.0,0.00021917,2]
[320068188,1711132248231,-500.0,0.00021917,2]
[320068189,1711132248240,-993.1,0.00021917,2]
[320068190,1711132248250,-500.0,0.00021917,2]
[320068191,1711132248259,-500.0,0.00021917,2]
[320068192,1711132248268,-500.0,0.00021917,2]
[320068193,1711132248277,-500.0,0.00021917,2]
[320068194,1711132248287,-500.0,0.00021917,2]
[320068195,1711132248297,-500.0,0.00021917,2]
[320068196,1711132248306,-500.0,0.00021917,2]
[320068197,1711132248315,-1034.53,0.00021917,2]
[320068198,1711132248326,-500.0,0.00021917,2]
[320068199,1711132248335,-500.92298199,0.00021917,2]
[320068200,1711132248344,-384.13236765,0.00021917,2]
[320068201,1711132248354,-500.0,0.00021917,2]
[320068202,1711132248363,-504.00602203,0.00021917,2]
[320068203,1711132248373,-500.0,0.00021917,2]
[320068204,1711132248382,-500.0,0.00021917,2]
[320068205,1711132248391,-500.0,0.00021917,2]
[320068206,1711132248401,-500.0,0.00021917,2]
[320068207,1711132248410,-500.0,0.00021917,2]
[320068208,1711132248419,-500.0,0.00021917,2]
[320068209,1711132248429,-500.0,0.00021917,2]
[320068210,1711132248439,-500.0,0.00021917,2]
[320068211,1711132248448,-500.0,0.00021917,2]
[320068212,1711132248457,-500.0,0.00021917,2]
[320068213,1711132248467,-502.52230762,0.00021917,2]
[320068214,1711132248476,-500.0,0.00021917,2]
[320068215,1711132248485,-502.93923395,0.00021917,2]
[320068216,1711132248494,-629.07509272,0.00021917,2]
[320068217,1711132248503,-500.0,0.00021917,2]
[320068218,1711132248512,-318.35711313,0.00021917,2]
[320068219,1711132248521,-500.0,0.00021917,2]
[320068220,1711132248530,-507.70850072,0.00021917,2]
[320068221,1711132248540,-1423.09,0.00021917,2]
[320068222,1711132248549,-500.0,0.00021917,2]
[320068223,1711132248558,-500.0,0.00021917,2]
[320068224,1711132248568,-500.0,0.00021917,2]
[320068225,1711132248577,-500.0,0.00021917,2]
[320068226,1711132248588,-503.1037863,0.00021917,2]
[320068227,1711132248597,-500.0,0.00021917,2]
[320068228,1711132248606,-500.0,0.00021917,2]
[320068229,1711132248615,-500.0,0.00021917,2]
[320068230,1711132248624,-920.98,0.00021917,2]
[320068231,1711132248633,-500.0,0.00021917,2]
[320068232,1711132248642,-500.0,0.00021917,2]
[320068233,1711132248651,-500.0,0.00021917,2]
[320068234,1711132248660,-500.0,0.00021917,2]
[320068235,1711132248670,-1174.52,0.00021917,2]
[320068236,1711132248679,-500.0,0.00021917,2]
[320068237,1711132248688,-500.0,0.00021917,2]
[320068238,1711132248697,-500.0,0.00021917,2]
[320068239,1711132248706,-500.0,0.00021917,2]
[320068240,1711132248716,-500.0,0.00021917,2]
[320068241,1711132248726,-500.43561352,0.00021917,2]
[320068242,1711132248735,-504.17961341,0.00021917,2]
[320068243,1711132248744,-500.0,0.00021917,2]
[320068244,1711132248753,-520.58,0.00021917,2]
[320068245,1711132248763,-1450.9,0.00021917,2]
[320068246,1711132248772,-500.0,0.00021917,2]
[320068247,1711132248782,-500.0,0.00021917,2]
[320068248,1711132248791,-500.0,0.00021917,2]
[320068249,1711132248801,-667.15,0.00021917,2]
[320068250,1711132248810,-500.0,0.00021917,2]
[320068251,1711132248819,-500.0,0.00021917,2]
[320068252,1711132248830,-500.0,0.00021917,2]
[320068253,1711132248839,-500.0,0.00021917,2]
[320068254,1711132248848,-500.0,0.00021917,2]
[320068255,1711132248857,-641.41,0.00021917,2]
[320068256,1711132248866,-500.0,0.00021917,2]
[320068257,1711132248875,-521.45,0.00021917,2]
[320068258,1711132248885,-916.69,0.00021917,2]
[320068259,1711132248894,-500.0,0.00021917,2]
[320068260,1711132248903,-500.0,0.00021917,2]
[320068261,1711132248913,-959.47,0.00021917,2]
[320068262,1711132248922,-500.0,0.00021917,2]
[320068263,1711132248931,-500.0,0.00021917,2]
[320068264,1711132248940,-501.94440022,0.00021917,2]
[320068265,1711132248950,-500.0,0.00021917,2]
[320068266,1711132248958,-500.0,0.00021917,2]
[320068267,1711132248968,-1121.4,0.00021917,2]
[320068268,1711132248977,-500.0,0.00021917,2]
[320068269,1711132248986,-500.0,0.00021917,2]
[320068270,1711132248996,-986.2,0.00021917,2]
[320068271,1711132249005,-1009.48,0.00021917,2]
[320068272,1711132249014,-500.0,0.00021917,2]
[320068273,1711132249023,-500.0,0.00021917,2]
[320068274,1711132249033,-502.77202182,0.00021917,2]
[320068275,1711132249042,-500.0,0.00021917,2]
[320068276,1711132249051,-500.84870558,0.00021917,2]
[320068277,1711132249060,-500.0,0.00021917,2]
[320068278,1711132249069,-500.0,0.00021917,2]
[320068279,1711132249080,-1518.73,0.00021917,2]
[320068280,1711132249089,-500.0,0.00021917,2]
[320068281,1711132249098,-500.0,0.00021917,2]
[320068282,1711132249107,-500.0,0.00021917,2]
[320068283,1711132249116,-1825.87,0.00021917,2]
[320068284,1711132249125,-536.92,0.00021917,2]
[320068285,1711132249134,-500.0,0.00021917,2]
[320068286,1711132249143,-500.80157367,0.00021917,2]
[320068287,1711132249153,-500.0,0.00021917,2]
[320068288,1711132249162,-826.79,0.00021917,2]
[320068289,1711132249172,-725.68,0.00021917,2]
[320068290,1711132249181,-500.0,0.00021917,2]
[320068291,1711132249190,-500.0,0.00021917,2]
[320068292,1711132249200,-500.0,0.00021917,2]
[320068293,1711132249210,-500.0,0.00021917,2]
[320068294,1711132249219,-501.34565588,0.00021917,2]
[320068295,1711132249228,-500.0,0.00021917,2]
[320068296,1711132249237,-2164.7,0.00021917,2]
[320068297,1711132249247,-500.0,0.00021917,2]
[320068298,1711132249256,-1000.0,0.00021917,2]
[320068299,1711132249265,-500.0,0.00021917,2]
[320068300,1711132249274,-500.0,0.00021917,2]
[320068301,1711132249283,-1116.71,0.00021917,2]
[320068302,1711132249293,-500.0,0.00021917,2]
[320068303,1711132249303,-500.0,0.00021917,2]
[320068304,1711132249312,-500.0,0.00021917,2]
[320068305,1711132249323,-1382.3,0.00021917,2]
[320068306,1711132249333,-2635.59,0.00021917,2]
[320068307,1711132249344,-500.0,0.00021917,2]
[320068308,1711132249353,-500.0,0.00021917,2]
[320068309,1711132249364,-796.83,0.00021917,2]
[320068310,1711132249373,-1897.5,0.00021917,2]
[320068311,1711132249383,-500.0,0.00021917,2]
[320068312,1711132249393,-500.0,0.00021917,2]
[320068313,1711132249403,-501.93665083,0.00021917,2]
[320068314,1711132249413,-500.0,0.00021917,2]
[320068315,1711132249424,-500.0,0.00021917,2]
[320068316,1711132249435,-501.26549501,0.00021917,2]
[320068317,1711132249445,-648.35552137,0.00021917,2]
[320068318,1711132249456,-500.0,0.00021917,2]
[320068319,1711132249465,-635.1,0.00021917,2]
[320068320,1711132249476,-2765.02,0.00021917,2]
[320068321,1711132249486,-500.0,0.00021917,2]
[320068322,1711132249496,-500.0,0.00021917,2]
[320068323,1711132249506,-500.18669028,0.00021917,2]
[320068324,1711132249515,-500.0,0.00021917,2]
[320068325,1711132249525,-500.0,0.00021917,2]
[320068326,1711132249534,-1543.21,0.00021917,2]
[320068327,1711132249544,-366.21197009,0.00021917,2]
[320068328,1711132249555,-500.22185958,0.00021917,2]
[320068329,1711132249565,-656.38,0.00021917,2]
[320068330,1711132249576,-500.0,0.00021917,2]
[320068331,1711132249586,-500.0,0.00021917,2]
[320068332,1711132249595,-500.0,0.00021917,2]
[320068333,1711132249606,-500.0,0.00021917,2]
[320068334,1711132249616,-500.0,0.00021917,2]
[320068335,1711132249625,-500.0,0.00021917,2]
[320068336,1711132249636,-967.87,0.00021917,2]
[320068337,1711132249645,-500.0,0.00021917,2]
[320068338,1711132249655,-500.0,0.00021917,2]
[320068339,1711132249664,-500.0,0.00021917,2]
[320068340,1711132249674,-500.0,0.00021917,2]
[320068341,1711132249684,-500.0,0.00021917,2]
[320068342,1711132249694,-500.0,0.00021917,2]
[320068343,1711132249704,-500.0,0.00021917,2]
[320068344,1711132249714,-500.0,0.00021917,2]
[320068345,1711132249727,-1922.64,0.00021917,2]
[320068346,1711132249736,-1018.72,0.00021917,2]
[320068347,1711132249746,-501.48788873,0.00021917,2]
[320068348,1711132249755,-1742.78,0.00021917,2]
[320068349,1711132249766,-500.0,0.00021917,2]
[320068350,1711132249776,-502.45006335,0.00021917,2]
[320068351,1711132249785,-500.0,0.00021917,2]
[320068352,1711132249795,-500.0,0.00021917,2]
[320068353,1711132249805,-500.0,0.00021917,2]
[320068354,1711132249815,-502.62277507,0.00021917,2]
[320068355,1711132249825,-311.11761584,0.00021917,2]
[320068356,1711132249836,-500.0,0.00021917,2]
[320068357,1711132249845,-500.0,0.00021917,2]
[320068358,1711132249855,-500.0,0.00021917,2]
[320068359,1711132249865,-500.0,0.00021917,2]
[320068360,1711132249875,-1927.23,0.00021917,2]
[320068361,1711132249884,-1524.76,0.00021917,2]
[320068362,1711132249894,-190.00814,0.00021917,2]
[320068363,1711132249904,-1078.61,0.00021917,2]
[320068364,1711132249913,-500.0,0.00021917,2]
[320068365,1711132249923,-501.07672057,0.00021917,2]
[320068366,1711132249933,-518.16072598,0.00021917,2]
[320068367,1711132249943,-500.0,0.00021917,2]
[320068368,1711132249952,-500.0,0.00021917,2]
[320068369,1711132249963,-500.0,0.00021917,2]
[320068370,1711132249972,-576.0,0.00021917,2]
[320068371,1711132249982,-500.0,0.00021917,2]
[320068372,1711132249992,-500.0,0.00021917,2]
[320068373,1711132250002,-500.0,0.00021917,2]
[320068374,1711132250011,-500.0,0.00021917,2]
[320068375,1711132250021,-502.36095083,0.00021917,2]
[320068376,1711132250031,-500.0,0.00021917,2]
[320068377,1711132250041,-500.0,0.00021917,2]
[320068378,1711132250051,-2830.6,0.00021917,2]
[320068379,1711132250061,-500.0,0.00021917,2]
[320068380,1711132250071,-500.0,0.00021917,2]
[320068381,1711132250082,-500.0,0.00021917,2]
[320068382,1711132250091,-500.0,0.00021917,2]
[320068383,1711132250101,-500.0,0.00021917,2]
[320068384,1711132250111,-500.0,0.00021917,2]
[320068385,1711132250120,-500.0,0.00021917,2]
[320068386,1711132250130,-502.96866718,0.00021917,2]
[320068387,1711132250141,-500.0,0.00021917,2]
[320068388,1711132250151,-500.0,0.00021917,2]
[320068389,1711132250161,-502.61162504,0.00021917,2]
[320068390,1711132250171,-337.63705447,0.00021917,2]
[320068391,1711132250181,-1955.48,0.00021917,2]
[320068392,1711132250191,-1717.09,0.00021917,2]
[320068393,1711132250201,-870.92,0.00021917,2]
[320068394,1711132250211,-583.57175115,0.00021917,2]
[320068395,1711132250221,-500.0,0.00021917,2]
[320068396,1711132250231,-500.0,0.00021917,2]
[320068397,1711132250241,-2195.87,0.00021917,2]
[320068398,1711132250251,-502.83936228,0.00021917,2]
[320068399,1711132250261,-500.0,0.00021917,2]
[320068400,1711132250271,-500.0,0.00021917,2]
[320068401,1711132250281,-500.0,0.00021917,2]
[320068402,1711132250291,-500.0,0.00021917,2]
[320068403,1711132250300,-500.0,0.00021917,2]
[320068404,1711132250311,-500.0,0.00021917,2]
[320068405,1711132250322,-500.0,0.00021917,2]
[320068406,1711132250333,-500.0,0.00021917,2]
[320068407,1711132250343,-997.69,0.00021917,2]
[320068408,1711132250353,-1187.79,0.00021917,2]
[320068409,1711132250363,-707.34,0.00021917,2]
[320068410,1711132250373,-628.97,0.00021917,2]
[320068411,1711132250383,-500.0,0.00021917,2]
[320068412,1711132250393,-502.92698582,0.00021917,2]
[320068413,1711132250403,-500.0,0.00021917,2]
[320068414,1711132250423,-500.0,0.00021917,2]
[320068415,1711132250437,-1914.74,0.00021917,2]
[320068416,1711132250448,-500.0,0.00021917,2]
[320068417,1711132250459,-1757.4,0.00021917,2]
[320068418,1711132250469,-2392.01,0.00021917,2]
[320068419,1711132250479,-503.39311658,0.00021917,2]
[320068420,1711132250490,-500.0,0.00021917,2]
[320068421,1711132250500,-500.0,0.00021917,2]
[320068422,1711132250511,-1253.11,0.00021917,2]
[320068423,1711132250521,-500.0,0.00021917,2]
[320068424,1711132250532,-2246.66,0.00021917,2]
[320068425,1711132250542,-270.25210628,0.00021917,2]
[320068426,1711132250552,-500.0,0.00021917,2]
[320068427,1711132250563,-502.78509284,0.00021917,2]
[320068428,1711132250575,-500.0,0.00021917,2]
[320068429,1711132250585,-500.0,0.00021917,2]
[320068430,1711132250596,-500.0,0.00021917,2]
[320068431,1711132250607,-502.6740527,0.00021917,2]
[320068432,1711132250617,-500.0,0.00021917,2]
[320068433,1711132250628,-1609.54,0.00021917,2]
[320068434,1711132250639,-500.0,0.00021917,2]
[320068435,1711132250649,-500.0,0.00021917,2]
[320068436,1711132250659,-500.0,0.00021917,2]
[320068437,1711132250670,-500.0,0.00021917,2]
[320068438,1711132250680,-500.0,0.00021917,2]
[320068439,1711132250691,-500.0,0.00021917,2]
[320068440,1711132250701,-500.0,0.00021917,2]
[320068441,1711132250715,-500.0,0.00021917,2]
[320068442,1711132250726,-500.0,0.00021917,2]
[320068443,1711132250737,-500.0,0.00021917,2]
[320068444,1711132250747,-500.0,0.00021917,2]
[320068445,1711132250761,-500.0,0.00021917,2]
[320068446,1711132250772,-500.0,0.00021917,2]
[320068447,1711132250782,-1210.17,0.00021917,2]
[320068448,1711132250795,-1847.25,0.00021917,2]
[320068449,1711132250806,-500.0,0.00021917,2]
[320068450,1711132250817,-500.0,0.00021917,2]
[320068451,1711132250828,-500.0,0.00021917,2]
[320068452,1711132250839,-500.0,0.00021917,2]
[320068453,1711132250850,-500.0,0.00021917,2]
[320068454,1711132250861,-500.0,0.00021917,2]
[320068455,1711132250872,-859.64,0.00021917,2]
[320068456,1711132250883,-500.0,0.00021917,2]
[320068457,1711132250895,-201.4985367,0.00021917,2]
[320068458,1711132250907,-500.0,0.00021917,2]
[320068459,1711132250917,-500.0,0.00021917,2]
[320068460,1711132250928,-500.0,0.00021917,2]
[320068461,1711132250938,-500.0,0.00021917,2]
[320068462,1711132250948,-501.46134047,0.00021917,2]
[320068463,1711132250959,-500.0,0.00021917,2]
[320068464,1711132250972,-1470.65,0.00021917,2]
[320068465,1711132250983,-500.0,0.00021917,2]
[320068466,1711132250993,-500.0,0.00021917,2]
[320068467,1711132251005,-500.0,0.00021917,2]
[320068468,1711132251016,-500.0,0.00021917,2]
[320068469,1711132251026,-1316.35,0.00021917,2]
[320068470,1711132251037,-500.0,0.00021917,2]
[320068471,1711132251048,-2239.49,0.00021917,2]
[320068472,1711132251058,-500.0,0.00021917,2]
[320068473,1711132251069,-500.0,0.00021917,2]
[320068474,1711132251081,-500.0,0.00021917,2]
[320068475,1711132251093,-500.0,0.00021917,2]
[320068476,1711132251104,-500.45943592,0.00021917,2]
[320068477,1711132251115,-500.0,0.00021917,2]
[320068478,1711132251125,-1192.01,0.00021917,2]
[320068479,1711132251136,-500.0,0.00021917,2]
[320068480,1711132251147,-500.0,0.00021917,2]
[320068481,1711132251157,-500.0,0.00021917,2]
[320068482,1711132251167,-500.0,0.00021917,2]
[320068483,1711132251178,-500.0,0.00021917,2]
[320068484,1711132251189,-2086.05,0.00021917,2]
[320068485,1711132251200,-500.0,0.00021917,2]
[320068486,1711132251210,-500.0,0.00021917,2]
[320068487,1711132251221,-500.0,0.00021917,2]
[320068488,1711132251231,-1660.51,0.00021917,2]
[320068489,1711132251242,-500.0,0.00021917,2]
[320068490,1711132251252,-500.0,0.00021917,2]
[320068491,1711132251261,-500.0,0.00021917,2]
[320068492,1711132251271,-500.0,0.00021917,2]
[320068493,1711132251281,-500.0,0.00021917,2]
[320068494,1711132251291,-220.5570353,0.00021917,2]
[320068495,1711132251301,-500.0,0.00021917,2]
[320068496,1711132251311,-503.18548854,0.00021917,2]
[320068497,1711132251321,-500.0,0.00021917,2]
[320068498,1711132251331,-500.0,0.00021917,2]
[320068499,1711132251342,-500.0,0.00021917,2]
[320068500,1711132251352,-1303.63,0.00021917,2]
[320068501,1711132251362,-500.0,0.00021917,2]
[320068502,1711132251372,-500.0,0.00021917,2]
[320068503,1711132251382,-500.0,0.00021917,2]
[320068504,1711132251392,-500.0,0.00021917,2]
[320068505,1711132251402,-500.0,0.00021917,2]
[320068506,1711132251412,-662.86,0.00021917,2]
[320068507,1711132251422,-501.90364932,0.00021917,2]
[320068508,1711132251432,-500.0,0.00021917,2]
[320068509,1711132251442,-500.0,0.00021917,2]
[320068510,1711132251452,-500.0,0.00021917,2]
[320068511,1711132251462,-500.0,0.00021917,2]
[320068512,1711132251472,-500.0,0.00021917,2]
[320068513,1711132251482,-500.0,0.00021917,2]
[320068514,1711132251492,-500.0,0.00021917,2]
[320068515,1711132251503,-500.0,0.00021917,2]
[320068516,1711132251513,-500.81112257,0.00021917,2]
[320068517,1711132251523,-500.0,0.00021917,2]
[320068518,1711132251534,-502.85400733,0.00021917,2]
[320068519,1711132251545,-500.0,0.00021917,2]
[320068520,1711132251555,-500.0,0.00021917,2]
[320068521,1711132251568,-500.0,0.00021917,2]
[320068522,1711132251866,-1497.96,0.00021917,2]
[320068523,1711132251875,-500.0,0.00021917,2]
[320068524,1711132251885,-500.0,0.00021917,2]
[320068525,1711132251894,-500.0,0.00021917,2]
[320068526,1711132251904,-500.0,0.00021917,2]